bitfinex/quotes_ETHUSD_20250422
["timestamp","ask_amount","ask_price","bid_price","bid_amount"]
[1745344984326,0.8186,1699.3,1698.9,5.88602773]
[1745344984530,0.8186,1699.3,1699.0,3.0]
[1745344984960,0.7856,1699.6,1699.4,5.88431293]
[1745344985263,0.7856,1699.9,1699.5,5.88388139]
[1745344985564,25.089,1700.1,1699.8,3.0]
[1745344985565,5.691,1700.1,1699.8,3.0]
[1745344986962,0.7856,1700.5,1699.9,5.94121365]
[1745344987163,6.4766,1700.5,1700.0,5.88220056]
[1745344987411,6.4766,1700.5,1699.9,6.61711447]
[1745344987614,6.067123,1700.5,1699.9,12.44078239]
[1745344987763,6.067123,1700.5,1699.9,3.67579137]
[1745344987959,6.067123,1700.5,1699.9,3.0]
[1745344988176,0.55,1700.4,1699.8,3.0]
[1745344988467,0.55,1700.4,1699.7,5.88315303]
[1745344988887,6.067123,1700.5,1699.9,5.8826788]
[1745344989064,6.067123,1700.5,1700.1,5.88187192]
[1745344989411,5.691,1700.8,1700.3,3.0]
[1745344989607,5.691,1700.8,1700.4,5.88066541]
[1745344989768,5.691,1700.8,1700.5,5.8805502]
[1745344989987,5.691,1700.8,1700.5,5.88044765]
[1745344990389,5.691,1701.0,1700.6,5.88014737]
[1745344990790,6.4766,1701.0,1700.6,5.88014737]
[1745344991104,6.4766,1701.0,1700.6,5.88003059]
[1745344991311,6.4766,1701.0,1700.5,5.88062334]
[1745344991514,6.4006,1701.2,1700.8,5.87941287]
[1745344992073,6.4006,1701.2,1700.7,11.75946774]
[1745344992371,6.4006,1701.2,1700.8,5.87953443]
[1745344993090,0.7856,1701.2,1700.9,5.87922325]
[1745344993312,0.7856,1701.4,1700.9,3.0]
[1745344993510,0.7856,1701.4,1701.1,5.87844907]
[1745344993913,0.7856,1701.4,1701.1,5.87831692]
[1745344994114,19.399,1701.5,1701.2,5.87814905]
[1745344994319,19.399,1701.5,1701.1,5.87832223]
[1745344994859,6.4006,1701.6,1701.1,5.87854917]
[1745344995150,6.4006,1701.6,1701.3,5.87784952]
[1745344995357,6.4006,1701.6,1701.2,6.46584528]
[1745344995916,6.4006,1701.6,1701.2,6.46583838]
[1745344996515,6.4006,1701.6,1701.2,12.34379565]
[1745344996715,6.4006,1701.6,1701.2,6.46581219]
[1745344996917,12.27744083,1701.6,1701.0,0.3]
[1745344997154,12.27744083,1701.6,1700.9,5.87919298]
[1745344997459,6.4006,1701.6,1700.9,5.87919298]
[1745344997875,6.4006,1701.6,1701.0,5.87879615]
[1745344998173,6.4006,1701.6,1700.9,5.87900089]
[1745344998344,6.4006,1701.6,1700.9,5.87899063]
[1745344998541,6.4006,1701.6,1701.0,0.58789906]
[1745344998980,6.4006,1701.6,1701.0,6.46677701]
[1745344999276,6.4006,1701.6,1701.0,12.34551004]
[1745344999433,5.87744028,1701.5,1701.0,0.58789906]
[1745344999637,5.87761818,1701.4,1700.8,3.0]
[1745344999958,5.87761818,1701.4,1700.7,5.87975284]
[1745345000139,6.66366853,1701.3,1700.6,5.88009416]
[1745345000341,0.7856,1701.3,1700.6,5.88009416]
[1745345000564,7.32990105,1701.3,1700.7,0.58800942]
[1745345000770,1.45192182,1701.3,1700.7,6.46790217]
[1745345001067,7.32981299,1701.3,1700.7,0.58800942]
[1745345002130,0.55,1700.9,1699.8,0.8167]
[1745345002337,0.7856,1700.6,1699.9,0.05882219]
[1745345002531,0.7856,1700.6,1699.4,5.613]
[1745345002532,5.88183438,1700.2,1699.6,0.8167]
[1745345002772,0.7856,1700.0,1699.3,12.58583318]
[1745345003072,0.7856,1700.0,1699.4,4.25858332]
[1745345003275,6.66817414,1700.0,1699.4,1.25858332]
[1745345003576,6.66817414,1700.0,1699.3,5.88476246]
[1745345003949,6.66817414,1700.0,1699.2,5.8849338]
[1745345003950,5.88269978,1699.9,1699.2,5.8849338]
[1745345004168,6.66818501,1700.0,1699.2,5.88488881]
[1745345004362,6.66818501,1700.0,1699.3,3.0]
[1745345004545,6.66818501,1700.0,1699.2,5.88488881]
[1745345004744,0.7856,1700.0,1699.3,6.5319934]
[1745345005074,0.7856,1700.0,1699.4,3.0]
[1745345005446,0.7856,1700.0,1699.4,8.88442437]
[1745345005858,5.613,1700.3,1699.6,3.0]
[1745345006296,0.7887,1700.4,1699.9,8.88254176]
[1745345006483,5.87938742,1700.9,1700.1,5.88180669]
[1745345006777,5.87938742,1700.9,1700.2,3.0]
[1745345006778,0.7887,1700.8,1700.2,3.0]
[1745345006973,6.66830648,1700.8,1700.2,3.0]
[1745345007270,6.66845002,1700.8,1700.0,3.88825418]
[1745345007482,6.66845002,1700.8,1700.0,5.94105058]
[1745345007681,6.66845002,1700.8,1700.2,3.0]
[1745345008178,5.87994308,1700.7,1700.1,3.0]
[1745345008371,5.87994308,1700.7,1699.9,6.68104398]
[1745345008574,5.88032949,1700.6,1700.0,3.0]
[1745345008879,5.88032949,1700.6,1700.1,0.3]
[1745345009175,0.7887,1700.8,1700.1,0.3]
[1745345009537,0.7887,1700.8,1700.1,0.35881684]
[1745345009744,0.7887,1700.8,1700.2,5.88162802]
[1745345010249,0.7887,1700.8,1700.1,6.24062673]
[1745345010449,1.42887,1700.8,1700.2,0.62406267]
[1745345010833,1.42887,1700.8,1700.1,5.94058748]
[1745345011038,0.7887,1700.8,1700.2,11.76305159]
[1745345011235,0.7887,1700.8,1700.3,8.88120123]
[1745345011845,0.7887,1700.8,1700.3,14.7623534]
[1745345012052,0.7887,1700.8,1700.3,3.0]
[1745345012770,0.7887,1700.8,1700.3,8.88130112]
[1745345012969,0.7887,1700.8,1700.3,16.23867262]
[1745345013290,0.7887,1700.8,1700.4,5.88081078]
[1745345013493,0.7887,1700.8,1700.3,10.3573773]
[1745345013692,0.7887,1700.8,1700.4,5.880861]
[1745345013889,0.7887,1700.8,1700.5,5.88040881]
[1745345014213,0.7887,1701.1,1700.7,5.87972652]
[1745345014423,0.7887,1701.1,1700.9,5.87908201]
[1745345014570,5.614,1701.4,1701.0,5.87889476]
[1745345014898,5.614,1701.4,1701.0,5.8786478]
[1745345015396,5.614,1701.4,1701.1,5.87854782]
[1745345015702,5.614,1701.4,1701.0,5.87867692]
[1745345015996,5.614,1701.4,1701.1,5.87847738]
[1745345016204,5.614,1701.4,1701.0,12.93315415]
[1745345016370,5.614,1701.4,1700.9,3.0]
[1745345016565,5.614,1701.4,1700.7,0.7985]
[1745345016867,0.7887,1701.3,1700.7,5.87992432]
[1745345017082,0.7887,1701.3,1700.8,5.87953674]
[1745345017598,0.55,1701.2,1700.4,5.88077539]
[1745345017773,0.7887,1701.1,1700.3,5.88131506]
[1745345017978,5.613,1701.0,1700.6,5.88012353]
[1745345018175,5.613,1701.0,1700.6,5.8802559]
[1745345018383,5.613,1701.0,1700.5,5.88043892]
[1745345018582,5.613,1701.0,1700.4,5.88073048]
[1745345018788,0.7887,1700.8,1700.5,5.88056558]
[1745345019124,0.7887,1700.8,1700.5,5.88041428]
[1745345019324,0.7887,1701.1,1701.0,5.87889476]
[1745345019474,0.7887,1701.1,1700.9,5.87909341]
[1745345019814,0.7887,1701.1,1701.0,5.87889476]
[1745345020011,0.7887,1701.1,1700.7,5.87971532]
[1745345020173,0.7887,1701.1,1700.9,5.87893251]
[1745345020367,0.7887,1701.1,1700.9,11.75791813]
[1745345020595,0.7887,1701.1,1700.9,5.87893251]
[1745345020805,0.7887,1701.1,1700.7,6.46772638]
[1745345021007,0.7887,1701.1,1700.8,5.87925342]
[1745345021192,0.7887,1701.1,1700.9,6.46697169]
[1745345022075,0.7887,1701.1,1701.0,5.87889476]
[1745345022704,0.7887,1701.1,1700.9,9.46692914]
[1745345022921,0.7887,1701.1,1700.9,15.34593294]
[1745345023085,0.7887,1701.1,1700.9,9.46692914]
[1745345023286,0.7887,1701.1,1701.0,0.94669291]
[1745345023505,0.7887,1701.1,1700.9,0.58792534]
[1745345023847,0.7887,1701.1,1700.7,6.46769472]
[1745345024027,0.7887,1701.1,1700.7,0.58797153]
[1745345024312,0.7887,1701.1,1700.7,6.46785319]
[1745345024603,0.7887,1701.1,1700.4,5.88081229]
[1745345024807,0.7949,1701.0,1700.4,5.88073663]
[1745345025119,0.7949,1701.0,1700.5,5.88047557]
[1745345025310,0.7949,1701.0,1700.3,5.88121064]
[1745345025473,0.7949,1701.0,1700.2,5.88166098]
[1745345025675,0.7949,1701.0,1700.8,5.87952988]
[1745345025891,0.7949,1701.0,1700.8,5.87935736]
[1745345026519,0.7949,1701.0,1700.7,5.87975292]
[1745345026803,0.7949,1701.0,1700.8,5.8795669]
[1745345027010,0.7949,1701.0,1700.9,5.8792404]
[1745345027319,0.7949,1701.0,1700.8,5.87940291]
[1745345027780,0.7949,1701.0,1700.8,11.75883086]
[1745345027976,0.7949,1701.0,1700.8,7.055286]
[1745345028178,0.7949,1701.0,1700.8,7.05525546]
[1745345028480,5.569,1701.3,1700.7,0.05879622]
[1745345028688,0.7949,1701.4,1701.1,5.87833814]
[1745345028924,0.7949,1701.4,1701.1,5.87850109]
[1745345029080,0.7949,1701.4,1701.1,5.87834344]
[1745345029280,0.7949,1701.4,1701.0,11.75738438]
[1745345029483,0.7949,1701.4,1701.0,7.05439754]
[1745345029693,19.387,1701.7,1701.0,7.0546062]
[1745345029879,0.7949,1701.6,1701.3,5.87757353]
[1745345030308,0.7949,1701.6,1701.5,5.8771672]
[1745345030483,6.3639,1701.8,1701.5,11.75411541]
[1745345030686,0.7949,1701.8,1701.7,5.87647646]
[1745345030886,5.569,1702.1,1701.5,1.17541154]
[1745345030887,0.7949,1702.0,1701.9,5.87578588]
[1745345031101,0.7949,1702.3,1701.7,11.75250771]
[1745345031311,0.7949,1702.3,1701.7,3.0]
[1745345031558,0.7949,1702.3,1701.8,5.87598855]
[1745345031759,0.55,1702.2,1701.7,8.87645458]
[1745345032056,0.7949,1702.3,1701.7,8.87643255]
[1745345032265,0.55,1702.2,1701.7,3.0]
[1745345032558,0.7949,1702.1,1701.7,5.8764143]
[1745345032921,0.7949,1702.1,1701.5,7.05238895]
[1745345033121,0.55,1702.2,1700.8,5.87924363]
[1745345033122,6.67070768,1701.9,1701.1,5.87833225]
[1745345033323,0.7949,1701.7,1701.2,5.87803857]
[1745345034065,0.7949,1701.7,1701.3,5.87779969]
[1745345034429,0.7949,1701.7,1701.4,5.87734917]
[1745345034935,0.7949,1701.7,1701.3,5.87761569]
[1745345035135,0.7949,1701.7,1701.4,5.87742408]
[1745345035343,0.7949,1701.7,1701.2,8.87807078]
[1745345035568,0.7949,1701.7,1701.2,5.87796854]
[1745345036137,0.7949,1701.7,1701.3,5.87779808]
[1745345036369,0.7949,1701.7,1701.2,5.87796854]
[1745345036537,0.7949,1701.7,1701.2,5.87796614]
[1745345037165,0.7949,1701.7,1701.3,5.8776891]
[1745345037660,0.7949,1701.7,1701.2,5.87796614]
[1745345038065,0.7949,1701.7,1701.3,5.87769243]
[1745345038568,6.1,1701.6,1701.2,5.87796614]
[1745345038780,0.7949,1701.5,1700.4,0.7854]
[1745345038945,0.7949,1701.5,1700.8,5.87936825]
[1745345038946,0.7949,1701.3,1700.8,5.87936825]
[1745345039134,6.3629,1701.3,1700.8,11.75872508]
[1745345039476,6.3629,1701.3,1700.9,5.87923363]
[1745345039673,6.3629,1701.3,1700.8,7.05544096]
[1745345040538,6.3629,1701.3,1700.8,1.17587251]
[1745345040737,6.3629,1701.3,1700.8,7.05530451]
[1745345041172,6.3629,1701.3,1700.8,1.17587251]
[1745345041411,7.58694597,1701.3,1700.8,7.05529448]
[1745345041869,7.58694597,1701.3,1700.8,7.05540766]
[1745345042371,7.58694597,1701.3,1700.8,7.05528225]
[1745345042546,7.58694597,1701.3,1700.8,5.87940974]
[1745345042958,7.58694597,1701.3,1700.7,11.75947702]
[1745345043275,7.58694597,1701.3,1700.7,5.93868308]
[1745345043436,7.58694597,1701.3,1700.8,5.87958607]
[1745345044174,7.58694597,1701.3,1700.7,5.87976071]
[1745345044384,6.1,1701.2,1700.7,3.0]
[1745345044551,6.1,1701.2,1700.7,3.88801124]
[1745345044873,6.1,1701.2,1700.4,0.7854]
[1745345044874,0.7949,1701.1,1700.4,0.7854]
[1745345045073,0.7949,1700.9,1700.3,3.5881661]
[1745345045376,0.7949,1700.9,1700.3,9.46947676]
[1745345045578,0.7949,1700.9,1700.6,3.0]
[1745345046339,0.7949,1700.9,1700.6,8.88021737]
[1745345046557,0.7949,1700.9,1700.6,10.3562671]
[1745345046758,0.7949,1700.9,1700.6,10.3561142]
[1745345047056,6.1,1701.0,1700.6,10.3561142]
[1745345047262,6.8949,1701.1,1700.8,5.87930201]
[1745345047564,6.8949,1701.1,1700.9,0.5879302]
[1745345047759,6.8949,1701.1,1700.7,5.8797002]
[1745345048161,6.8949,1701.1,1700.7,5.87991904]
[1745345048591,6.8949,1701.1,1700.6,17.85205318]
[1745345048890,6.8949,1701.1,1700.6,3.0]
[1745345049281,6.8949,1701.1,1700.6,8.88025675]
[1745345049459,6.8949,1701.1,1700.7,5.93851888]
[1745345049658,6.8949,1701.1,1700.7,5.87972128]
[1745345050154,6.8949,1701.1,1700.6,15.59054102]
[1745345050155,6.8949,1701.1,1700.6,15.59050927]
[1745345050354,6.8949,1701.1,1700.7,4.55905093]
[1745345051987,6.8949,1701.1,1700.7,10.43892587]
[1745345052161,6.8949,1701.1,1700.7,4.55905093]
[1745345053197,6.8949,1701.1,1700.7,10.43878154]
[1745345053401,6.8949,1701.1,1700.7,10.88707785]
[1745345053590,6.8949,1701.1,1700.7,5.00734724]
[1745345054402,6.8949,1701.1,1700.8,0.50073472]
[1745345055473,6.8949,1701.1,1700.7,3.44829631]
[1745345056668,6.8949,1701.1,1700.7,9.32817202]
[1745345057306,0.8233,1701.3,1701.1,5.87822543]
[1745345057491,6.1,1701.5,1701.1,5.93716552]
[1745345057667,0.8233,1701.6,1701.1,8.93711329]
[1745345057868,0.8233,1701.6,1701.1,4.5647579]
[1745345058175,0.8233,1701.6,1701.1,10.44320941]
[1745345058382,0.8233,1701.6,1701.1,10.44327372]
[1745345058791,0.8233,1701.6,1701.1,4.5647579]
[1745345059207,0.8233,1701.6,1701.1,10.44330369]
[1745345059373,0.8233,1701.6,1701.1,4.5647579]
[1745345060404,0.8233,1701.6,1701.1,10.44321528]
[1745345060606,0.8233,1701.6,1701.2,6.92240215]
[1745345060765,0.8233,1701.6,1701.2,1.10310004]
[1745345060969,0.8233,1701.6,1701.3,5.87771358]
[1745345061206,0.8233,1701.6,1701.3,5.87768949]
[1745345061405,0.8233,1701.6,1701.4,5.87738453]
[1745345061616,0.8233,1701.6,1701.3,5.87765255]
[1745345061777,0.8233,1701.6,1701.3,11.7553051]
[1745345061975,0.8233,1701.6,1701.4,1.17553051]
[1745345063789,0.8233,1701.6,1701.1,10.44308457]
[1745345063985,0.8233,1701.6,1701.2,5.87793579]
[1745345065012,6.1,1701.7,1701.3,5.87772835]
[1745345065225,6.1,1701.7,1701.2,6.32714735]
[1745345065572,6.1,1701.7,1701.3,5.8777639]
[1745345065778,6.1,1701.7,1701.4,0.58777639]
[1745345066320,6.1,1701.7,1701.2,6.32725464]
[1745345066511,6.1,1701.7,1701.2,0.44917746]
[1745345066733,6.1,1701.7,1701.1,10.44306734]
[1745345066891,6.1,1701.7,1701.1,10.44308199]
[1745345066892,0.8038,1701.6,1701.1,10.44308199]
[1745345067213,0.8038,1701.6,1701.1,16.3214021]
[1745345067393,0.8038,1701.6,1701.2,7.51028831]
[1745345067592,0.8038,1701.6,1701.2,8.30793545]
[1745345068383,0.8038,1701.6,1701.2,1.63214021]
[1745345068581,0.8038,1701.6,1701.2,7.51030336]
[1745345068785,0.8038,1701.6,1701.2,7.51013462]
[1745345069039,0.8038,1701.6,1701.3,0.75101346]
[1745345070461,6.1,1701.7,1701.5,3.0]
[1745345070614,6.9038,1701.8,1701.5,3.0]
[1745345070815,6.9038,1701.8,1701.4,16.44430538]
[1745345071156,6.9038,1701.8,1701.4,16.38553689]
[1745345071354,6.9038,1701.8,1701.5,7.57438317]
[1745345071554,5.558,1702.1,1701.6,14.75327779]
[1745345071555,6.9038,1702.1,1701.6,14.75327779]
[1745345071720,6.9038,1702.1,1701.6,3.0]
[1745345071921,6.9038,1702.1,1701.6,8.87674148]
[1745345072336,6.9038,1702.1,1701.6,3.0]
[1745345072657,6.9038,1702.1,1701.6,4.05154811]
[1745345073445,6.9038,1702.1,1701.6,9.92835711]
[1745345073846,6.9038,1702.1,1701.6,4.05154811]
[1745345074048,6.9038,1702.1,1701.6,9.92813878]
[1745345074482,6.9038,1702.1,1701.6,4.05154811]
[1745345074767,6.9038,1702.1,1701.6,9.92823325]
[1745345074972,0.8038,1702.0,1701.6,1.05154811]
[1745345075179,6.67934806,1702.0,1701.3,8.87756157]
[1745345075472,0.8038,1702.0,1701.3,11.75520595]
[1745345075670,6.6793034,1702.0,1701.4,3.0]
[1745345075871,0.8038,1702.0,1701.4,8.87749587]
[1745345076084,0.8038,1702.0,1701.5,0.88774959]
[1745345076776,6.68017042,1701.8,1701.2,1.24135926]
[1745345076979,0.8038,1701.4,1700.8,12.2342269]
[1745345077177,0.8038,1701.4,1700.8,6.67717952]
[1745345077361,6.68145517,1701.4,1700.8,0.7978]
[1745345077572,0.8038,1701.4,1700.9,3.0]
[1745345077746,0.8038,1701.4,1700.9,3.96773601]
[1745345078080,0.8038,1701.4,1700.9,10.28999457]
[1745345078379,0.8038,1701.4,1700.9,7.28999457]
[1745345078538,0.8038,1701.4,1700.9,4.41098405]
[1745345079349,0.8038,1701.4,1700.9,4.46977008]
[1745345079756,0.8038,1701.4,1701.0,0.44697701]
[1745345080960,6.68135466,1701.4,1701.0,0.44697701]
[1745345081161,0.8038,1701.4,1700.9,4.41098405]
[1745345081366,6.68136221,1701.4,1700.9,4.41098405]
[1745345081550,6.68136221,1701.4,1700.9,3.44324804]
[1745345081751,12.55913373,1701.4,1700.9,3.44324804]
[1745345081948,5.87789473,1701.3,1700.9,3.44324804]
[1745345082155,6.64812366,1701.2,1700.6,3.7738]
[1745345082577,5.87822366,1701.2,1700.5,6.71046566]
[1745345082846,6.6485169,1701.1,1700.6,3.0]
[1745345083090,0.7699,1701.1,1700.6,0.44889218]
[1745345083289,0.7699,1701.1,1700.7,3.0]
[1745345083584,5.556,1701.5,1700.8,9.65325125]
[1745345083786,0.7699,1701.4,1701.0,3.0]
[1745345084450,0.7699,1701.4,1701.0,8.87888557]
[1745345084856,0.7699,1701.4,1701.0,3.0]
[1745345085484,0.7699,1701.4,1701.0,3.44880411]
[1745345087696,0.7693,1701.6,1701.2,5.87815893]
[1745345087884,0.7693,1701.6,1701.3,6.46562013]
[1745345088081,0.7693,1701.9,1701.5,8.87696306]
[1745345089290,0.7693,1701.9,1701.5,3.0]
[1745345090368,6.64405816,1702.2,1701.6,0.7528]
[1745345090676,10.38961584,1702.2,1701.6,1.71578005]
[1745345091459,5.87526684,1702.1,1701.6,0.96298005]
[1745345091658,5.87526684,1702.1,1701.5,3.0]
[1745345091863,6.64521487,1701.9,1701.5,0.43223756]
[1745345092106,0.7693,1701.9,1701.3,0.58781589]
[1745345092273,0.7693,1701.9,1701.2,9.63074935]
[1745345092274,6.64514438,1701.9,1701.2,9.63074935]
[1745345092483,5.87626536,1701.8,1701.2,3.7528]
[1745345092723,5.87626536,1701.8,1701.2,9.63096758]
[1745345093012,5.87626536,1701.8,1701.2,3.7528]
[1745345093180,5.87626536,1701.8,1701.2,5.94245906]
[1745345093181,5.87623156,1701.8,1701.2,5.94245906]
[1745345093684,5.87623156,1701.8,1701.2,2.18965906]
[1745345093685,6.64591924,1701.7,1701.2,2.18965906]
[1745345093896,6.64591924,1701.7,1701.2,5.18965906]
[1745345094111,0.7693,1701.7,1701.2,11.06758648]
[1745345094397,0.7693,1701.7,1701.3,6.9844066]
[1745345094602,0.7693,1701.7,1701.3,1.10675865]
[1745345094806,0.7693,1701.7,1701.2,3.0]
[1745345095105,6.64587326,1701.7,1701.2,3.0]
[1745345095272,0.7693,1701.7,1701.2,3.0]
[1745345095767,12.52263387,1701.7,1701.2,3.0]
[1745345096099,6.64587965,1701.7,1701.2,3.0]
[1745345096396,7.89809993,1701.7,1701.2,3.0]
[1745345097177,2.02152028,1701.7,1701.2,3.0]
[1745345098113,7.89806537,1701.7,1701.2,3.0]
[1745345098420,2.02152028,1701.7,1701.2,3.0]
[1745345098577,0.7693,1701.7,1701.2,8.87807349]
[1745345098771,0.7693,1701.7,1701.2,3.0]
[1745345099367,0.7693,1701.7,1701.2,3.05877561]
[1745345100008,0.7693,1701.7,1701.2,3.0]
[1745345100217,0.7693,1701.7,1701.3,0.0587756]
[1745345100406,0.831,1701.9,1701.4,3.7955]
[1745345100606,0.831,1701.9,1701.4,9.6727869]
[1745345100984,0.831,1701.9,1701.4,3.7955]
[1745345101206,6.70692965,1701.9,1701.4,3.0]
[1745345101404,0.831,1701.9,1701.4,3.0]
[1745345101617,0.831,1701.9,1701.4,4.64819039]
[1745345101815,6.7069708,1701.9,1701.4,1.64819039]
[1745345102112,0.831,1701.9,1701.3,9.77142119]
[1745345102674,0.831,1701.9,1701.3,9.7713837]
[1745345102896,0.831,1701.9,1701.3,9.77135389]
[1745345103217,5.87663595,1701.7,1701.0,7.11079912]
[1745345103370,0.831,1701.6,1701.0,12.55293746]
[1745345103576,0.831,1701.6,1701.1,8.8875615]
[1745345103994,0.831,1701.6,1701.1,9.33459127]
[1745345104208,0.831,1701.6,1701.1,15.21311531]
[1745345104418,0.831,1701.6,1701.2,1.52131153]
[1745345106817,0.831,1701.6,1701.3,3.0]
[1745345107119,0.831,1701.8,1701.4,5.87727652]
[1745345107290,0.831,1701.8,1701.5,8.87714066]
[1745345107684,0.831,1702.0,1701.5,8.87714066]
[1745345107897,0.831,1702.0,1701.5,3.0]
[1745345108119,2.05711896,1702.0,1701.5,3.0]
[1745345109494,0.831,1702.0,1701.6,3.0]
[1745345110019,0.831,1702.0,1701.6,3.44567182]
[1745345110785,0.831,1702.0,1701.6,0.44567182]
[1745345110986,6.62921623,1701.7,1701.1,6.00202977]
[1745345111187,6.62921623,1701.7,1701.1,4.85884842]
[1745345112134,6.62921623,1701.7,1701.1,10.73737169]
[1745345112423,0.7526,1701.7,1701.1,11.17429675]
[1745345112807,0.7526,1701.3,1700.7,6.65310247]
[1745345113012,6.63056683,1701.3,1700.6,11.43106961]
[1745345113325,0.7526,1701.3,1700.7,3.5874]
[1745345113496,0.7526,1701.3,1700.7,9.89689572]
[1745345113703,0.7526,1701.3,1700.8,0.98968957]
[1745345114048,0.7526,1701.3,1700.7,9.89711312]
[1745345114335,5.87838551,1701.2,1700.7,0.42982414]
[1745345114503,0.7526,1701.1,1700.6,3.0]
[1745345114708,0.7526,1701.1,1700.6,0.43770396]
[1745345114934,0.7526,1701.1,1700.5,0.7734]
[1745345114935,7.29426116,1701.1,1700.5,3.0]
[1745345115293,1.41569855,1701.1,1700.5,3.0]
[1745345116423,1.41569855,1701.1,1700.5,8.88058928]
[1745345116720,1.41569855,1701.1,1700.6,0.05879585]
[1745345116923,0.7526,1701.4,1700.8,8.87950984]
[1745345117107,0.7526,1701.4,1701.2,3.0]
[1745345117310,0.7526,1701.7,1701.2,3.0]
[1745345117732,6.62929603,1701.7,1701.2,3.0]
[1745345117935,6.62961369,1701.6,1701.0,3.0]
[1745345118095,12.50675015,1701.6,1701.0,3.0]
[1745345118304,1.25055591,1701.7,1700.8,3.7734]
[1745345118305,6.62983974,1701.5,1700.8,3.7734]
[1745345118629,0.7526,1701.1,1700.6,3.44664029]
[1745345118799,0.7526,1701.1,1700.6,3.0]
[1745345118996,0.7526,1701.1,1700.7,0.3]
[1745345119247,0.7526,1701.1,1700.8,3.0]
[1745345119823,0.7526,1701.3,1701.0,3.0]
[1745345120095,5.87706306,1701.6,1701.1,5.87841537]
[1745345120096,0.7526,1701.6,1701.1,5.87841537]
[1745345120326,0.7526,1701.6,1701.2,3.0]
[1745345121719,0.7526,1701.6,1701.0,3.0]
[1745345121925,7.29248138,1701.6,1701.0,3.0]
[1745345122322,5.8771943,1701.5,1701.0,3.0]
[1745345122523,0.7526,1701.4,1701.0,3.0]
[1745345123503,6.63030943,1701.4,1700.8,3.7734]
[1745345123699,6.63030943,1701.4,1700.8,3.0]
[1745345124043,7.88107057,1701.4,1700.8,4.50594434]
[1745345124240,5.87730197,1701.5,1700.8,4.50594434]
[1745345124241,5.553,1701.7,1701.0,6.70777166]
[1745345124409,6.62884549,1701.8,1701.1,3.0]
[1745345124610,6.62884549,1701.8,1701.1,8.87853054]
[1745345124812,5.87647715,1701.7,1701.1,3.0]
[1745345125007,0.7526,1701.7,1701.1,3.0]
[1745345125354,0.7526,1701.7,1701.1,8.87831]
[1745345125745,0.7526,1701.7,1701.1,14.76568072]
[1745345125953,0.7526,1701.5,1701.0,3.0]
[1745345126156,0.7526,1701.5,1701.0,14.82476924]
[1745345126325,0.7526,1701.5,1701.1,1.48247692]
[1745345126959,0.7526,1701.5,1701.2,3.0]
[1745345128438,0.7526,1701.5,1701.2,3.05877713]
[1745345128640,0.8117,1702.0,1701.5,3.0]
[1745345128837,0.8117,1702.0,1701.6,6.18737072]
[1745345129095,5.87549737,1702.0,1701.5,3.0]
[1745345129258,0.8117,1701.9,1701.5,3.0]
[1745345129634,0.8117,1701.9,1701.4,3.0]
[1745345131379,0.8117,1701.9,1701.6,0.7738]
[1745345131533,0.8117,1701.9,1701.6,0.96507723]
[1745345131732,19.68739652,1702.3,1701.2,3.10748715]
[1745345131733,6.6879815,1701.8,1701.2,3.10748715]
[1745345132239,0.8117,1701.8,1701.2,8.98546807]
[1745345133269,6.68783625,1701.8,1701.2,8.98546807]
[1745345133431,6.68783625,1701.8,1701.2,3.10748715]
[1745345133641,5.87652923,1701.7,1701.2,3.10748715]
[1745345133870,0.8117,1701.6,1701.2,0.10748715]
[1745345134548,0.8117,1701.6,1701.2,0.05877611]
[1745345134970,0.8117,1701.6,1701.1,17.06734534]
[1745345135165,0.8117,1701.9,1701.2,0.7738]
[1745345135372,5.87624597,1701.8,1701.2,0.83257157]
[1745345135572,5.87624597,1701.8,1701.2,0.7738]
[1745345136275,5.87624597,1701.8,1701.2,2.01484179]
[1745345136438,6.68767076,1701.9,1701.2,2.01484179]
[1745345136638,5.87627686,1701.8,1701.2,2.01484179]
[1745345136856,5.87699534,1701.6,1701.1,4.93026505]
[1745345137254,6.68900389,1701.5,1701.1,0.44778813]
[1745345137458,5.87765547,1701.4,1700.8,2.27974434]
[1745345137659,0.8117,1701.4,1700.8,0.43325956]
[1745345137857,0.8117,1701.4,1700.7,6.70635288]
[1745345138059,0.8117,1701.4,1700.8,3.0]
[1745345138261,0.8117,1701.4,1700.7,6.70635288]
[1745345138575,0.8117,1701.4,1700.8,3.0]
[1745345138781,0.8117,1701.4,1700.9,0.3]
[1745345140279,0.8117,1701.4,1700.6,0.7738]
[1745345140499,0.8117,1701.2,1700.4,6.3258]
[1745345140668,0.8117,1701.2,1700.5,9.70635288]
[1745345140999,0.8117,1701.2,1700.5,6.70635288]
[1745345141355,0.8117,1701.2,1700.6,0.0587964]
[1745345141554,0.8117,1701.2,1700.6,7.2035969]
[1745345141794,0.8117,1701.2,1700.6,1.26456486]
[1745345142007,0.8117,1701.2,1700.7,5.87972802]
[1745345142304,0.8117,1701.2,1700.6,10.57631192]
[1745345142951,0.8117,1701.2,1700.6,10.57612521]
[1745345143155,0.8117,1701.2,1700.7,6.93732551]
[1745345143364,0.8117,1701.2,1700.8,5.9381492]
[1745345143889,0.8117,1701.2,1700.8,0.05878878]
[1745345144124,0.8117,1701.2,1700.7,14.41934842]
[1745345144386,0.8117,1701.2,1700.8,0.05878878]
[1745345144592,0.8117,1701.2,1700.9,3.0]
[1745345145458,0.8117,1701.2,1700.8,1.44780548]
[1745345145755,0.8117,1701.2,1700.8,4.44780548]
[1745345146008,0.8117,1701.2,1700.8,10.327243]
[1745345146582,0.8117,1701.2,1700.9,5.87920897]
[1745345146783,0.8117,1701.2,1700.8,16.20655554]
[1745345146985,0.8117,1701.2,1701.0,5.87875302]
[1745345147377,0.8145,1701.6,1701.1,5.87854917]
[1745345147693,0.8145,1701.6,1701.4,5.87748954]
[1745345148616,0.8145,1701.9,1701.3,7.54072469]
[1745345148765,0.8145,1701.9,1701.7,5.87630516]
[1745345148967,0.8145,1701.9,1701.7,5.87630184]
[1745345149699,0.8145,1702.2,1701.8,5.87613115]
[1745345149904,0.8145,1702.2,1701.9,5.87577715]